fUSD/lending_fUSD_20240624
["ID","MTS","AMOUNT","RATE_DAILY","PERIOD"]
[330269434,1719219110900,-500.0,0.00019178,2]
[330269435,1719219110927,-500.0,0.00019178,2]
[330269436,1719219110953,-500.0,0.00019178,2]
[330269437,1719219110980,-516.18345462,0.00019178,2]
[330269438,1719219111006,-896.28,0.00019178,2]
[330269439,1719219111033,-2269.36,0.00019178,2]
[330269440,1719219111059,-500.0,0.00019178,2]
[330269441,1719219111088,-880.92,0.00019178,2]
[330269442,1719219111116,-500.0,0.00019178,2]
[330269443,1719219111144,-500.0,0.00019178,2]
[330269444,1719219111171,-500.0,0.00019178,2]
[330269445,1719219111199,-529.67,0.00019178,2]
[330269446,1719219111226,-500.0,0.00019178,2]
[330269447,1719219111253,-500.0,0.00019178,2]
[330269448,1719219111284,-500.0,0.00019178,2]
[330269449,1719219111311,-500.0,0.00019178,2]
[330269450,1719219111341,-877.57,0.00019178,2]
[330269451,1719219111373,-500.0,0.00019178,2]
[330269452,1719219111401,-1138.11,0.00019178,2]
[330269453,1719219111429,-500.0,0.00019178,2]
[330269454,1719219111459,-500.0,0.00019178,2]
[330269455,1719219111488,-500.0,0.00019178,2]
[330269456,1719219111515,-547.64576185,0.00019178,2]
[330269457,1719219111542,-500.0,0.00019178,2]
[330269458,1719219111571,-500.0,0.00019178,2]
[330269459,1719219111598,-500.0,0.00019178,2]
[330269460,1719219111625,-500.0,0.00019178,2]
[330269461,1719219111654,-18770.04,0.00019178,2]
[330269462,1719219111681,-1014.99,0.00019178,2]
[330269463,1719219111709,-500.0,0.00019178,2]
[330269464,1719219111736,-500.0,0.00019178,2]
[330269465,1719219111766,-500.0,0.00019178,2]
[330269466,1719219111793,-500.0,0.00019178,2]
[330269467,1719219111821,-500.0,0.00019178,2]
[330269468,1719219111848,-1861.27,0.00019178,2]
[330269469,1719219111876,-500.0,0.00019178,2]
[330269470,1719219111904,-500.0,0.00019178,2]
[330269471,1719219111934,-500.0,0.00019178,2]
[330269472,1719219111963,-500.0,0.00019178,2]
[330269473,1719219111992,-1512.7,0.00019178,2]
[330269474,1719219112022,-1421.28,0.00019178,2]
[330269475,1719219112048,-500.0,0.00019178,2]
[330269476,1719219112076,-527.05,0.00019178,2]
[330269477,1719219112106,-221.61,0.00019178,2]
[330269478,1719219112133,-500.0,0.00019178,2]
[330269479,1719219112160,-500.0,0.00019178,2]
[330269480,1719219112187,-500.0,0.00019178,2]
[330269481,1719219112214,-500.0,0.00019178,2]
[330269482,1719219112240,-528.79237272,0.00019178,2]
[330269483,1719219112269,-589.19,0.00019178,2]
[330269484,1719219112297,-621.54526222,0.00019178,2]
[330269485,1719219112324,-500.0,0.00019178,2]
[330269486,1719219112352,-726.38,0.00019178,2]
[330269487,1719219112381,-500.0,0.00019178,2]
[330269488,1719219112409,-952.68,0.00019178,2]
[330269489,1719219112434,-500.0,0.00019178,2]
[330269490,1719219112462,-500.0,0.00019178,2]
[330269491,1719219112489,-922.67,0.00019178,2]
[330269492,1719219112516,-272.00861991,0.00019178,2]
[330269493,1719219112543,-500.0,0.00019178,2]
[330269494,1719219112576,-500.0,0.00019178,2]
[330269495,1719219112605,-1039.09,0.00019178,2]
[330269496,1719219112632,-500.0,0.00019178,2]
[330269497,1719219112658,-500.0,0.00019178,2]
[330269498,1719219112685,-600.96,0.00019178,2]
[330269499,1719219112712,-500.0,0.00019178,2]
[330269500,1719219112739,-623.4593476,0.00019178,2]
[330269501,1719219112766,-894.67,0.00019178,2]
[330269502,1719219112793,-500.0,0.00019178,2]
[330269503,1719219112824,-500.0,0.00019178,2]
[330269504,1719219112849,-500.0,0.00019178,2]
[330269505,1719219112878,-772.68,0.00019178,2]
[330269506,1719219112904,-500.0,0.00019178,2]
[330269507,1719219112931,-227.46228983,0.00019178,2]
[330269508,1719219112957,-1895.67,0.00019178,2]
[330269509,1719219112985,-500.0,0.00019178,2]
[330269510,1719219113011,-500.0,0.00019178,2]
[330269511,1719219113038,-500.0,0.00019178,2]
[330269512,1719219113066,-1479.08,0.00019178,2]
[330269513,1719219113094,-500.0,0.00019178,2]
[330269514,1719219113123,-500.0,0.00019178,2]
[330269515,1719219113150,-500.0,0.00019178,2]
[330269516,1719219113177,-500.0,0.00019178,2]
[330269517,1719219113204,-500.0,0.00019178,2]
[330269518,1719219113232,-500.0,0.00019178,2]
[330269519,1719219113259,-500.0,0.00019178,2]
[330269520,1719219113291,-1665.06,0.00019178,2]
[330269521,1719219113319,-1100.8,0.00019178,2]
[330269522,1719219113346,-500.0,0.00019178,2]
[330269523,1719219113373,-500.0,0.00019178,2]
[330269524,1719219113401,-500.0,0.00019178,2]
[330269525,1719219113599,-500.0,0.00019178,2]
[330269526,1719219113627,-500.0,0.00019178,2]
[330269527,1719219113655,-1937.34,0.00019178,2]
[330269528,1719219113682,-500.0,0.00019178,2]
[330269529,1719219113708,-657.61,0.00019178,2]
[330269530,1719219113733,-500.0,0.00019178,2]
[330269531,1719219113760,-1694.54,0.00019178,2]
[330269532,1719219113786,-500.0,0.00019178,2]
[330269533,1719219113819,-500.0,0.00019178,2]
[330269534,1719219113845,-500.0,0.00019178,2]
[330269535,1719219113872,-500.0,0.00019178,2]
[330269536,1719219113898,-500.0,0.00019178,2]
[330269537,1719219113925,-500.0,0.00019178,2]
[330269538,1719219113952,-535.25774067,0.00019178,2]
[330269539,1719219113980,-186.78,0.00019178,2]
[330269540,1719219114009,-659.6,0.00019178,2]
[330269541,1719219114037,-500.0,0.00019178,2]
[330269542,1719219114066,-479.7385,0.00019178,2]
[330269543,1719219114096,-500.0,0.00019178,2]
[330269544,1719219114125,-690.76,0.00019178,2]
[330269545,1719219114155,-500.0,0.00019178,2]
[330269546,1719219114184,-840.14,0.00019178,2]
[330269547,1719219114215,-500.0,0.00019178,2]
[330269548,1719219114242,-500.0,0.00019178,2]
[330269549,1719219114273,-515.99,0.00019178,2]
[330269550,1719219114302,-1270.74,0.00019178,2]
[330269551,1719219114333,-870.19,0.00019178,2]
[330269552,1719219114362,-500.0,0.00019178,2]
[330269553,1719219114390,-648.27324589,0.00019178,2]
[330269554,1719219114418,-500.0,0.00019178,2]
[330269555,1719219114447,-500.0,0.00019178,2]
[330269556,1719219114475,-500.0,0.00019178,2]
[330269557,1719219114508,-652.98,0.00019178,2]
[330269558,1719219114536,-500.0,0.00019178,2]
[330269559,1719219114564,-500.0,0.00019178,2]
[330269560,1719219114592,-500.0,0.00019178,2]
[330269561,1719219114619,-500.0,0.00019178,2]
[330269562,1719219114651,-600.19440038,0.00019178,2]
[330269563,1719219114680,-500.0,0.00019178,2]
[330269564,1719219114713,-500.0,0.00019178,2]
[330269565,1719219114741,-500.0,0.00019178,2]
[330269566,1719219114770,-939.72,0.00019178,2]
[330269567,1719219114797,-500.0,0.00019178,2]
[330269568,1719219114829,-500.0,0.00019178,2]
[330269569,1719219114858,-500.0,0.00019178,2]
[330269570,1719219114888,-1486.41,0.00019178,2]
[330269571,1719219114918,-2863.88,0.00019178,2]
[330269572,1719219114948,-1004.34,0.00019178,2]
[330269573,1719219114979,-500.0,0.00019178,2]
[330269574,1719219115008,-709.34,0.00019178,2]
[330269575,1719219115037,-1493.59,0.00019178,2]
[330269576,1719219115065,-500.0,0.00019178,2]
[330269577,1719219115098,-621.76,0.00019178,2]
[330269578,1719219115128,-1311.74,0.00019178,2]
[330269579,1719219115156,-417.36382013,0.00019178,2]
[330269580,1719219115186,-500.0,0.00019178,2]
[330269581,1719219115214,-635.53,0.00019178,2]
[330269582,1719219115242,-500.0,0.00019178,2]
[330269583,1719219115271,-500.0,0.00019178,2]
[330269584,1719219115301,-533.28,0.00019178,2]
[330269585,1719219115337,-500.0,0.00019178,2]
[330269586,1719219115371,-500.0,0.00019178,2]
[330269587,1719219115399,-500.0,0.00019178,2]
[330269588,1719219115428,-500.0,0.00019178,2]
[330269589,1719219115457,-557.15377668,0.00019178,2]
[330269590,1719219115486,-500.0,0.00019178,2]
[330269591,1719219115514,-300.0,0.00019178,2]
[330269592,1719219115541,-500.0,0.00019178,2]
[330269593,1719219115569,-500.0,0.00019178,2]
[330269594,1719219115596,-569.02,0.00019178,2]
[330269595,1719219115624,-500.0,0.00019178,2]
[330269596,1719219115652,-500.0,0.00019178,2]
[330269597,1719219115679,-532.01,0.00019178,2]
[330269598,1719219115705,-603.3214971,0.00019178,2]
[330269599,1719219115732,-500.0,0.00019178,2]
[330269600,1719219115759,-500.0,0.00019178,2]
[330269601,1719219115787,-500.0,0.00019178,2]
[330269602,1719219115813,-500.0,0.00019178,2]
[330269603,1719219115842,-500.0,0.00019178,2]
[330269604,1719219115870,-1091.83,0.00019178,2]
[330269605,1719219115896,-500.0,0.00019178,2]
[330269606,1719219115921,-619.87560275,0.00019178,2]
[330269607,1719219115948,-587.85,0.00019178,2]
[330269608,1719219115975,-500.0,0.00019178,2]
[330269609,1719219116003,-653.27,0.00019178,2]
[330269610,1719219116031,-500.0,0.00019178,2]
[330269611,1719219116056,-500.0,0.00019178,2]
[330269612,1719219116084,-668.5,0.00019178,2]
[330269613,1719219116112,-500.0,0.00019178,2]
[330269614,1719219116138,-1917.18,0.00019178,2]
[330269615,1719219116164,-500.0,0.00019178,2]
[330269616,1719219116189,-500.0,0.00019178,2]
[330269617,1719219116214,-500.0,0.00019178,2]
[330269618,1719219116240,-500.0,0.00019178,2]
[330269619,1719219116266,-500.0,0.00019178,2]
[330269620,1719219116296,-500.0,0.00019178,2]
[330269621,1719219116326,-500.0,0.00019178,2]
[330269622,1719219116353,-500.0,0.00019178,2]
[330269623,1719219116380,-500.0,0.00019178,2]
[330269624,1719219116405,-500.0,0.00019178,2]
[330269625,1719219116431,-500.0,0.00019178,2]
[330269626,1719219116458,-500.0,0.00019178,2]
[330269627,1719219116488,-500.0,0.00019178,2]
[330269628,1719219116516,-500.0,0.00019178,2]
[330269629,1719219116543,-7415.19,0.00019178,2]
[330269630,1719219116750,-500.0,0.00019178,2]
[330269631,1719219116779,-578.82,0.00019178,2]
[330269632,1719219116806,-1798.69,0.00019178,2]
[330269633,1719219116834,-500.0,0.00019178,2]
[330269634,1719219116860,-562.90306503,0.00019178,2]
[330269635,1719219116889,-500.0,0.00019178,2]
[330269636,1719219116915,-500.0,0.00019178,2]
[330269637,1719219116942,-500.0,0.00019178,2]
[330269638,1719219116968,-815.27,0.00019178,2]
[330269639,1719219116994,-500.0,0.00019178,2]
[330269640,1719219117024,-3527.56,0.00019178,2]
[330269641,1719219117051,-500.0,0.00019178,2]
[330269642,1719219117077,-500.0,0.00019178,2]
[330269643,1719219117103,-1358.05,0.00019178,2]
[330269644,1719219117129,-500.0,0.00019178,2]
[330269645,1719219117155,-500.0,0.00019178,2]
[330269646,1719219117181,-825.81,0.00019178,2]
[330269647,1719219117206,-500.0,0.00019178,2]
[330269648,1719219117233,-629.87,0.00019178,2]
[330269649,1719219117259,-500.0,0.00019178,2]
[330269650,1719219117290,-500.0,0.00019178,2]
[330269651,1719219117317,-1236.09,0.00019178,2]
[330269652,1719219117346,-500.0,0.00019178,2]
[330269653,1719219117375,-500.0,0.00019178,2]
[330269654,1719219117402,-500.0,0.00019178,2]
[330269655,1719219117429,-1278.17,0.00019178,2]
[330269656,1719219117456,-500.0,0.00019178,2]
[330269657,1719219117484,-500.0,0.00019178,2]
[330269658,1719219117511,-2102.4,0.00019178,2]
[330269659,1719219117538,-500.0,0.00019178,2]
[330269660,1719219117563,-509.74,0.00019178,2]
[330269661,1719219117589,-500.0,0.00019178,2]
[330269662,1719219117615,-500.0,0.00019178,2]
[330269663,1719219117642,-500.0,0.00019178,2]
[330269664,1719219117668,-500.0,0.00019178,2]
[330269665,1719219117694,-500.0,0.00019178,2]
[330269666,1719219117720,-501.94,0.00019178,2]
[330269667,1719219117747,-500.0,0.00019178,2]
[330269668,1719219117773,-500.0,0.00019178,2]
[330269669,1719219117800,-2784.87,0.00019178,2]
[330269670,1719219117827,-500.0,0.00019178,2]
[330269671,1719219117853,-1027.87,0.00019178,2]
[330269672,1719219117879,-500.0,0.00019178,2]
[330269673,1719219117904,-500.0,0.00019178,2]
[330269674,1719219117932,-1717.27,0.00019178,2]
[330269675,1719219117959,-677.43,0.00019178,2]
[330269676,1719219117986,-1180.3,0.00019178,2]
[330269677,1719219118012,-500.0,0.00019178,2]
[330269678,1719219118038,-520.08668272,0.00019178,2]
[330269679,1719219118064,-500.0,0.00019178,2]
[330269680,1719219118093,-500.0,0.00019178,2]
[330269681,1719219118119,-500.0,0.00019178,2]
[330269682,1719219118146,-500.0,0.00019178,2]
[330269683,1719219118172,-500.0,0.00019178,2]
[330269684,1719219118198,-500.0,0.00019178,2]
[330269685,1719219118224,-500.0,0.00019178,2]
[330269686,1719219118250,-500.0,0.00019178,2]
[330269687,1719219118280,-500.0,0.00019178,2]
[330269688,1719219118307,-500.0,0.00019178,2]
[330269689,1719219118338,-500.0,0.00019178,2]
[330269690,1719219118371,-727.25,0.00019178,2]
[330269691,1719219118397,-539.5,0.00019178,2]
[330269692,1719219118423,-500.0,0.00019178,2]
[330269693,1719219118451,-500.0,0.00019178,2]
[330269694,1719219118482,-3728.34,0.00019178,2]
[330269695,1719219118509,-500.0,0.00019178,2]
[330269696,1719219118537,-2529.06,0.00019178,2]
[330269697,1719219118564,-611.04,0.00019178,2]
[330269698,1719219118598,-500.0,0.00019178,2]
[330269699,1719219118629,-500.0,0.00019178,2]
[330269700,1719219118658,-2584.42,0.00019178,2]
[330269701,1719219118686,-500.0,0.00019178,2]
[330269702,1719219118714,-500.0,0.00019178,2]
[330269703,1719219118741,-500.0,0.00019178,2]
[330269704,1719219118769,-685.73,0.00019178,2]
[330269705,1719219118800,-500.0,0.00019178,2]
[330269706,1719219118830,-391.10433718,0.00019178,2]
[330269707,1719219118857,-500.0,0.00019178,2]
[330269708,1719219118883,-500.0,0.00019178,2]
[330269709,1719219118910,-723.76,0.00019178,2]
[330269710,1719219118953,-622.35111184,0.00019178,2]
[330269711,1719219118982,-764.02,0.00019178,2]
[330269712,1719219119012,-866.63,0.00019178,2]
[330269713,1719219119040,-500.0,0.00019178,2]
[330269714,1719219119070,-500.0,0.00019178,2]
[330269715,1719219119102,-1808.46,0.00019178,2]
[330269716,1719219119130,-3128.36,0.00019178,2]
[330269717,1719219119158,-500.0,0.00019178,2]
[330269718,1719219119185,-2011.41,0.00019178,2]
[330269719,1719219119213,-500.0,0.00019178,2]
[330269720,1719219119241,-1355.31,0.00019178,2]
[330269721,1719219119268,-500.0,0.00019178,2]
[330269722,1719219119298,-500.0,0.00019178,2]
[330269723,1719219119329,-500.0,0.00019178,2]
[330269724,1719219119356,-500.0,0.00019178,2]
[330269725,1719219119385,-706.96,0.00019178,2]
[330269726,1719219119412,-500.0,0.00019178,2]
[330269727,1719219119440,-500.0,0.00019178,2]
[330269728,1719219119467,-586.10664087,0.00019178,2]
[330269729,1719219119495,-500.0,0.00019178,2]
[330269730,1719219119521,-1087.64,0.00019178,2]
[330269731,1719219119550,-500.0,0.00019178,2]
[330269732,1719219119578,-500.0,0.00019178,2]
[330269733,1719219119604,-500.0,0.00019178,2]
[330269734,1719219119632,-500.0,0.00019178,2]
[330269735,1719219119924,-541.88,0.00019178,2]
[330269736,1719219119953,-767.98,0.00019178,2]
[330269737,1719219119981,-788.54,0.00019178,2]
[330269738,1719219120009,-863.63,0.00019178,2]
[330269739,1719219120036,-500.0,0.00019178,2]
[330269740,1719219120064,-1293.94,0.00019178,2]
[330269741,1719219120099,-500.0,0.00019178,2]
[330269742,1719219120131,-1892.22,0.00019178,2]
[330269743,1719219120159,-584.75,0.00019178,2]
[330269744,1719219120187,-500.0,0.00019178,2]
[330269745,1719219120216,-872.65,0.00019178,2]
[330269746,1719219120246,-500.0,0.00019178,2]
[330269747,1719219120275,-500.0,0.00019178,2]
[330269748,1719219120301,-500.0,0.00019178,2]
[330269749,1719219120331,-500.0,0.00019178,2]
[330269750,1719219120359,-500.0,0.00019178,2]
[330269751,1719219120391,-647.16,0.00019178,2]
[330269752,1719219120420,-1891.81,0.00019178,2]
[330269753,1719219120449,-1053.59,0.00019178,2]
[330269754,1719219120477,-500.0,0.00019178,2]
[330269755,1719219120507,-500.0,0.00019178,2]
[330269756,1719219120534,-957.36,0.00019178,2]
[330269757,1719219120561,-500.0,0.00019178,2]
[330269758,1719219120590,-502.31898794,0.00019178,2]
[330269759,1719219120618,-500.0,0.00019178,2]
[330269760,1719219120646,-500.0,0.00019178,2]
[330269761,1719219120673,-500.0,0.00019178,2]
[330269762,1719219120700,-500.0,0.00019178,2]
[330269763,1719219120726,-500.0,0.00019178,2]
[330269764,1719219120752,-500.0,0.00019178,2]
[330269765,1719219120778,-3298.75,0.00019178,2]
[330269766,1719219120804,-552.19,0.00019178,2]
[330269767,1719219120832,-500.0,0.00019178,2]
[330269768,1719219120862,-849.74,0.00019178,2]
[330269769,1719219120889,-605.28,0.00019178,2]
[330269770,1719219120916,-219.44151994,0.00019178,2]
[330269771,1719219120943,-500.0,0.00019178,2]
[330269772,1719219120971,-500.0,0.00019178,2]
[330269773,1719219120997,-500.0,0.00019178,2]
[330269774,1719219121026,-500.0,0.00019178,2]
[330269775,1719219121055,-500.0,0.00019178,2]
[330269776,1719219121086,-500.0,0.00019178,2]
[330269777,1719219121114,-1096.63,0.00019178,2]
[330269778,1719219121142,-1280.2,0.00019178,2]
[330269779,1719219121170,-500.0,0.00019178,2]
[330269780,1719219121197,-500.0,0.00019178,2]
[330269781,1719219121224,-834.91,0.00019178,2]
[330269782,1719219121252,-1843.17,0.00019178,2]
[330269783,1719219121282,-2317.46,0.00019178,2]
[330269784,1719219121308,-500.0,0.00019178,2]
[330269785,1719219121340,-428.18480745,0.00019178,2]
[330269786,1719219121370,-500.0,0.00019178,2]
[330269787,1719219121396,-500.0,0.00019178,2]
[330269788,1719219121423,-500.0,0.00019178,2]
[330269789,1719219121449,-500.0,0.00019178,2]
[330269790,1719219121477,-500.0,0.00019178,2]
[330269791,1719219121506,-763.54,0.00019178,2]
[330269792,1719219121535,-500.0,0.00019178,2]
[330269793,1719219121562,-632.79,0.00019178,2]
[330269794,1719219121596,-1578.46,0.00019178,2]
[330269795,1719219121624,-500.0,0.00019178,2]
[330269796,1719219121652,-1862.43,0.00019178,2]
[330269797,1719219121682,-500.0,0.00019178,2]
[330269798,1719219121711,-3854.5,0.00019178,2]
[330269799,1719219121740,-500.0,0.00019178,2]
[330269800,1719219121769,-528.93,0.00019178,2]
[330269801,1719219121799,-1010.56,0.00019178,2]
[330269802,1719219121835,-500.0,0.00019178,2]
[330269803,1719219121864,-500.0,0.00019178,2]
[330269804,1719219121894,-500.0,0.00019178,2]
[330269805,1719219121922,-679.63,0.00019178,2]
[330269806,1719219121951,-500.0,0.00019178,2]
[330269807,1719219121980,-500.0,0.00019178,2]
[330269808,1719219122007,-545.4,0.00019178,2]
[330269809,1719219122034,-500.0,0.00019178,2]
[330269810,1719219122062,-500.0,0.00019178,2]
[330269811,1719219122094,-633.51,0.00019178,2]
[330269812,1719219122124,-500.0,0.00019178,2]
[330269813,1719219122153,-500.0,0.00019178,2]
[330269814,1719219122182,-1076.34,0.00019178,2]
[330269815,1719219122211,-500.0,0.00019178,2]
[330269816,1719219122238,-302.0,0.00019178,2]
[330269817,1719219122267,-500.0,0.00019178,2]
[330269818,1719219122300,-500.1,0.00019178,2]
[330269819,1719219122330,-815.29,0.00019178,2]
[330269820,1719219122358,-881.78,0.00019178,2]
[330269821,1719219122388,-752.54,0.00019178,2]
[330269822,1719219122416,-501.04615248,0.00019178,2]
[330269823,1719219122445,-500.0,0.00019178,2]
[330269824,1719219122475,-1656.04,0.00019178,2]
[330269825,1719219122506,-500.0,0.00019178,2]
[330269826,1719219122537,-500.0,0.00019178,2]
[330269827,1719219122568,-586.36,0.00019178,2]
[330269828,1719219122603,-500.0,0.00019178,2]
[330269829,1719219122636,-500.0,0.00019178,2]
[330269830,1719219122670,-500.0,0.00019178,2]
[330269831,1719219122705,-1401.97,0.00019178,2]
[330269832,1719219122736,-821.2,0.00019178,2]
[330269833,1719219122768,-500.0,0.00019178,2]
[330269834,1719219122800,-500.0,0.00019178,2]
[330269835,1719219122834,-500.0,0.00019178,2]
[330269836,1719219122863,-500.0,0.00019178,2]
[330269837,1719219122893,-500.0,0.00019178,2]
[330269838,1719219122923,-12687.68,0.00019178,2]
[330269839,1719219122954,-500.0,0.00019178,2]
[330269840,1719219122983,-606.55,0.00019178,2]
[330269841,1719219123200,-500.0,0.00019178,2]
[330269842,1719219123230,-500.0,0.00019178,2]
[330269843,1719219123260,-500.0,0.00019178,2]
[330269844,1719219123293,-500.0,0.00019178,2]
[330269845,1719219123326,-2054.46,0.00019178,2]
[330269846,1719219123357,-550.72,0.00019178,2]
[330269847,1719219123389,-500.0,0.00019178,2]
[330269848,1719219123418,-860.24,0.00019178,2]
[330269849,1719219123446,-1145.17,0.00019178,2]
[330269850,1719219123476,-784.49,0.00019178,2]
[330269851,1719219123508,-500.0,0.00019178,2]
[330269852,1719219123539,-500.0,0.00019178,2]
[330269853,1719219123570,-934.49,0.00019178,2]
[330269854,1719219123608,-1756.01,0.00019178,2]
[330269855,1719219123642,-500.0,0.00019178,2]
[330269856,1719219123671,-500.0,0.00019178,2]
[330269857,1719219123701,-250.0,0.00019178,2]
[330269858,1719219123729,-296.51463104,0.0001923,2]
[330269859,1719219123757,-234.1,0.0001923,2]
[330269860,1719219123788,-320.1,0.00019237,2]
[330269861,1719219123815,-543.96475932,0.00019243,2]
[330269862,1719219123853,-1758.8332144,0.00019331,2]
[330269863,1719219123887,-2032.22087186,0.00019334,2]
[330269864,1719219123920,-758.0,0.00019452,2]
[330269865,1719219123950,-698.44,0.00019452,4]
[330269866,1719219123980,-739.2,0.00019452,4]
[330269867,1719219124012,-539.47,0.00019452,4]
[330269868,1719219124042,-545.82,0.00019452,4]
[330269869,1719219124072,-500.0,0.00019452,4]
[330269870,1719219124110,-500.0,0.00019452,4]
[330269871,1719219124139,-500.0,0.00019452,4]
[330269872,1719219124169,-850.95,0.00019452,4]
[330269873,1719219124198,-592.45,0.00019452,4]
[330269874,1719219124227,-664.37,0.00019452,4]
[330269875,1719219124254,-613.12,0.00019452,4]
[330269876,1719219124285,-821.61,0.00019452,4]
[330269877,1719219124318,-514.58,0.00019452,4]
[330269878,1719219124349,-500.0,0.00019452,4]
[330269879,1719219124379,-665.04,0.00019452,4]
[330269880,1719219124410,-629.11,0.00019452,4]
[330269881,1719219124440,-615.09,0.00019452,4]
[330269882,1719219124475,-572.87,0.00019452,4]
[330269883,1719219124504,-500.0,0.00019452,2]
[330269884,1719219124532,-556.94,0.00019452,4]
[330269885,1719219124559,-500.0,0.00019452,4]
[330269886,1719219124592,-500.0,0.00019452,4]
[330269887,1719219124620,-887.24,0.00019452,4]
[330269888,1719219124648,-655.04,0.00019452,4]
[330269889,1719219124676,-488.61,0.00019452,4]
[330269890,1719219124704,-509.2,0.00019452,4]
[330269891,1719219124733,-517.92,0.00019452,4]
[330269892,1719219124761,-610.78105563,0.00019452,4]
[330269893,1719219124788,-517.39,0.00019452,4]
[330269894,1719219124815,-519.43,0.00019452,4]
[330269895,1719219124845,-639.0,0.00019452,4]
[330269896,1719219124872,-532.99,0.00019452,4]
[330269897,1719219124901,-559.32,0.00019452,4]
[330269898,1719219124930,-500.0,0.00019452,4]
[330269899,1719219124957,-500.0,0.00019452,4]
[330269900,1719219124984,-500.0,0.00019452,4]
[330269901,1719219125011,-921.46,0.00019452,4]
[330269902,1719219125038,-826.34,0.00019452,4]
[330269903,1719219125066,-907.2,0.00019452,4]
[330269904,1719219125095,-514.15,0.00019452,4]
[330269905,1719219125124,-500.0,0.00019452,4]
[330269906,1719219125152,-876.76,0.00019452,4]
[330269907,1719219125179,-500.0,0.00019452,4]
[330269908,1719219125208,-500.0,0.00019452,4]
[330269909,1719219125234,-500.0,0.00019452,4]
[330269910,1719219125263,-826.83,0.00019452,4]
[330269911,1719219125292,-500.0,0.00019452,4]
[330269912,1719219125320,-548.73349152,0.00019452,4]
[330269913,1719219125350,-481.76,0.00019452,4]
[330269914,1719219125378,-500.0,0.00019452,4]
[330269915,1719219125406,-500.0,0.00019452,4]
[330269916,1719219125436,-964.25,0.00019452,4]
[330269917,1719219125468,-503.8,0.00019452,4]
[330269918,1719219125501,-634.47,0.00019452,4]
[330269919,1719219125535,-640.97,0.00019452,4]
[330269920,1719219125569,-605.59,0.00019452,4]
[330269921,1719219125610,-500.0,0.00019452,4]
[330269922,1719219125642,-541.54380686,0.00019452,4]
[330269923,1719219125672,-500.0,0.00019452,4]
[330269924,1719219125701,-500.0,0.00019452,4]
[330269925,1719219125730,-490.58902277,0.00019452,4]
[330269926,1719219125757,-500.0,0.00019452,4]
[330269927,1719219125785,-888.06,0.00019452,4]
[330269928,1719219125814,-468.35313353,0.00019452,4]
[330269929,1719219125846,-500.0,0.00019452,4]
[330269930,1719219125875,-1013.43,0.00019452,4]
[330269931,1719219125904,-500.0,0.00019452,4]
[330269932,1719219125933,-500.0,0.00019452,4]
[330269933,1719219125962,-500.0,0.00019452,4]